[Event "*** Titled Tuesday Blitz"]
[Site "Chess.com"]
[Date "2021.03.09"]
[Round "11"]
[White "MasterMK73"]
[Black "SkippingLaptop"]
[Result "0-1"]
[WhiteElo "2269"]
[BlackElo "2122"]
[TimeControl "180+1"]
[EndTime "12:09:37 PST"]
[Termination "SkippingLaptop won by resignation"]

1. d4 {[%clk 0:03:00.9]} 1... Nf6 {[%clk 0:02:58.9]} 2. Bf4 {[%clk 0:03:00.6]}
2... e6 {[%clk 0:02:58.1]} 3. e3 {[%clk 0:02:59.8]} 3... d5 {[%clk 0:02:58.7]}
4. Nf3 {[%clk 0:02:59.7]} 4... c5 {[%clk 0:02:59.3]} 5. Nbd2 {[%clk 0:02:59.7]}
5... Nc6 {[%clk 0:02:59.1]} 6. c3 {[%clk 0:02:59.8]} 6... cxd4 {[%clk
0:02:58.4]} 7. exd4 {[%clk 0:02:59]} 7... Nh5 {[%clk 0:02:59]} 8. Be3 {[%clk
0:02:51.8]} 8... Bd6 {[%clk 0:02:57]} 9. Bd3 {[%clk 0:02:51.8]} 9... Nf4 {[%clk
0:02:54.1]} 10. Bxf4 {[%clk 0:02:50.8]} 10... Bxf4 {[%clk 0:02:55]} 11. O-O
{[%clk 0:02:48.7]} 11... O-O {[%clk 0:02:51.8]} 12. Qe2 {[%clk 0:02:44.6]} 12...
f6 {[%clk 0:02:45.7]} 13. Rae1 {[%clk 0:02:38.8]} 13... e5 {[%clk 0:02:40]} 14.
g3 {[%clk 0:02:02.5]} 14... Bxd2 {[%clk 0:02:32.1]} 15. Nxd2 {[%clk 0:01:57.7]}
15... e4 {[%clk 0:02:28.8]} 16. Bc2 {[%clk 0:01:56.5]} 16... Bh3 {[%clk
0:02:26.6]} 17. f3 {[%clk 0:01:54.4]} 17... Bxf1 {[%clk 0:02:22.9]} 18. Rxf1
{[%clk 0:01:54.7]} 18... f5 {[%clk 0:02:22.8]} 19. Nb3 {[%clk 0:01:46.5]} 19...
b6 {[%clk 0:02:17.2]} 20. c4 {[%clk 0:01:39.3]} 20... Re8 {[%clk 0:02:02.1]} 21.
fxe4 {[%clk 0:01:30.8]} 21... fxe4 {[%clk 0:01:53.3]} 22. c5 {[%clk 0:01:02]}
22... Rf8 {[%clk 0:01:48.3]} 23. Rc1 {[%clk 0:00:50.6]} 23... Qf6 {[%clk
0:01:44.3]} 24. cxb6 {[%clk 0:00:49.2]} 24... Nxd4 {[%clk 0:01:42.5]} 25. Nxd4
{[%clk 0:00:47.5]} 25... Qxd4+ {[%clk 0:01:42.4]} 26. Kh1 {[%clk 0:00:47.8]}
26... Rf2 {[%clk 0:01:38.3]} 27. Qh5 {[%clk 0:00:40.9]} 27... axb6 {[%clk
0:01:16.3]} 28. Rd1 {[%clk 0:00:33.1]} 28... Rd2 {[%clk 0:01:11.5]} 29. Bb3
{[%clk 0:00:25.6]} 29... Rxd1+ {[%clk 0:01:09.9]} 30. Bxd1 {[%clk 0:00:26.2]}
30... Rf8 {[%clk 0:01:06.7]} 31. Bb3 {[%clk 0:00:25.1]} 31... Rf1+ {[%clk
0:00:52.8]} 32. Kg2 {[%clk 0:00:24]} 32... Qf2+ {[%clk 0:00:50.4]} 33. Kh3
{[%clk 0:00:22.9]} 33... Qf5+ {[%clk 0:00:49.5]} 34. Qxf5 {[%clk 0:00:19.4]}
34... Rxf5 {[%clk 0:00:50.4]} 35. Kg4 {[%clk 0:00:19.9]} 35... g6 {[%clk
0:00:50.3]} 36. h4 {[%clk 0:00:20.1]} 36... h5+ {[%clk 0:00:49.2]} 37. Kh3
{[%clk 0:00:20.4]} 37... e3 {[%clk 0:00:48.8]} 38. Bd1 {[%clk 0:00:19.7]} 38...
d4 {[%clk 0:00:46.4]} 39. Bb3+ {[%clk 0:00:18.7]} 39... Kg7 {[%clk 0:00:45.5]}
40. Bc2 {[%clk 0:00:19.6]} 40... e2 {[%clk 0:00:43.8]} 0-1

[Event "*** Titled Tuesday Blitz"]
[Site "Chess.com"]
[Date "2021.03.09"]
[Round "11"]
[White "Andrii_Prydun"]
[Black "david_alex"]
[Result "0-1"]
[WhiteElo "2253"]
[BlackElo "2103"]
[TimeControl "180+1"]
[EndTime "12:09:39 PST"]
[Termination "david_alex won on time"]

1. d4 {[%clk 0:01:58.1]} 1... Nf6 {[%clk 0:02:58.2]} 2. Nc3 {[%clk 0:01:59]}
2... d5 {[%clk 0:02:57.6]} 3. Bf4 {[%clk 0:01:59.6]} 3... e6 {[%clk 0:02:52.5]}
4. Nb5 {[%clk 0:01:48.4]} 4... Na6 {[%clk 0:02:52.2]} 5. e3 {[%clk 0:01:47.8]}
5... c6 {[%clk 0:02:51.8]} 6. Nc3 {[%clk 0:01:48]} 6... Be7 {[%clk 0:02:46.4]}
7. h3 {[%clk 0:01:42.1]} 7... Qb6 {[%clk 0:02:45.5]} 8. Rb1 {[%clk 0:01:41.3]}
8... O-O {[%clk 0:02:42.2]} 9. Nf3 {[%clk 0:01:39.5]} 9... c5 {[%clk 0:02:38.1]}
10. Be2 {[%clk 0:01:37.7]} 10... Bd7 {[%clk 0:02:34.4]} 11. O-O {[%clk
0:01:36.9]} 11... Rfd8 {[%clk 0:02:31.8]} 12. Ne5 {[%clk 0:01:36.5]} 12... Be8
{[%clk 0:02:31]} 13. a3 {[%clk 0:01:35.5]} 13... Rac8 {[%clk 0:02:26.4]} 14. Kh1
{[%clk 0:00:37]} 14... cxd4 {[%clk 0:02:20.2]} 15. exd4 {[%clk 0:00:36.8]} 15...
Ne4 {[%clk 0:02:11.1]} 16. Nxe4 {[%clk 0:00:36.2]} 16... dxe4 {[%clk 0:02:12]}
17. c3 {[%clk 0:00:35.6]} 17... f6 {[%clk 0:02:07.4]} 18. Nc4 {[%clk 0:00:33.3]}
18... Qc6 {[%clk 0:01:54.4]} 19. Be3 {[%clk 0:00:30]} 19... b5 {[%clk
0:01:44.9]} 20. Nd2 {[%clk 0:00:25.5]} 20... Nc7 {[%clk 0:01:33.5]} 21. f4
{[%clk 0:00:21.5]} 21... f5 {[%clk 0:01:31.1]} 22. Rg1 {[%clk 0:00:19.6]} 22...
Nd5 {[%clk 0:01:31.1]} 23. Nf1 {[%clk 0:00:19.8]} 23... Bd6 {[%clk 0:01:26.7]}
24. g3 {[%clk 0:00:19.1]} 24... Qb6 {[%clk 0:01:24.9]} 25. Qe1 {[%clk
0:00:18.3]} 25... a5 {[%clk 0:01:22.3]} 26. Qf2 {[%clk 0:00:12.3]} 26... b4
{[%clk 0:01:21.8]} 27. axb4 {[%clk 0:00:10.5]} 27... axb4 {[%clk 0:01:22]} 28.
g4 {[%clk 0:00:10.6]} 28... bxc3 {[%clk 0:01:18.9]} 29. bxc3 {[%clk 0:00:10.2]}
29... Qxb1 {[%clk 0:01:18.1]} 30. gxf5 {[%clk 0:00:06.8]} 30... exf5 {[%clk
0:01:17.9]} 31. c4 {[%clk 0:00:05.5]} 31... Nxe3 {[%clk 0:01:17.3]} 32. Nxe3
{[%clk 0:00:05.2]} 32... Qb7 {[%clk 0:00:59]} 33. Nd5 {[%clk 0:00:04.8]} 33...
Bf7 {[%clk 0:00:53.7]} 34. Nf6+ {[%clk 0:00:03.9]} 34... Kh8 {[%clk 0:00:54.1]}
35. Qh4 {[%clk 0:00:03.9]} 35... Bg8 {[%clk 0:00:41]} 36. d5 {[%clk 0:00:01.2]}
36... Qf7 {[%clk 0:00:33.6]} 37. Bh5 {[%clk 0:00:01.4]} 37... Qxf6 {[%clk
0:00:32.6]} 0-1

[Event "*** Titled Tuesday Blitz"]
[Site "Chess.com"]
[Date "2021.03.09"]
[Round "11"]
[White "ChristopherYoo"]
[Black "Iball95"]
[Result "1-0"]
[WhiteElo "2919"]
[BlackElo "2655"]
[TimeControl "180+1"]
[EndTime "12:09:40 PST"]
[Termination "ChristopherYoo won on time"]

1. d4 {[%clk 0:03:00.9]} 1... Nf6 {[%clk 0:02:58.3]} 2. Nf3 {[%clk 0:03:01.2]}
2... e6 {[%clk 0:02:58]} 3. c4 {[%clk 0:03:01.2]} 3... d5 {[%clk 0:02:57.7]} 4.
Nc3 {[%clk 0:03:01.6]} 4... Bb4 {[%clk 0:02:57.1]} 5. Qb3 {[%clk 0:03:01.4]}
5... Nc6 {[%clk 0:02:52.2]} 6. a3 {[%clk 0:02:56.8]} 6... Bd6 {[%clk 0:02:43.4]}
7. Bg5 {[%clk 0:02:46.4]} 7... dxc4 {[%clk 0:02:15.7]} 8. Qxc4 {[%clk 0:02:45]}
8... h6 {[%clk 0:02:12.9]} 9. Bh4 {[%clk 0:02:38]} 9... O-O {[%clk 0:02:11.4]}
10. Ne4 {[%clk 0:02:30.1]} 10... Be7 {[%clk 0:02:06.6]} 11. Nxf6+ {[%clk
0:02:29.3]} 11... Bxf6 {[%clk 0:02:07.5]} 12. Bxf6 {[%clk 0:02:29.6]} 12... Qxf6
{[%clk 0:02:07.9]} 13. e3 {[%clk 0:02:30.2]} 13... e5 {[%clk 0:02:01.9]} 14. d5
{[%clk 0:02:27.1]} 14... e4 {[%clk 0:01:33.5]} 15. Nd2 {[%clk 0:02:25.4]} 15...
Ne5 {[%clk 0:01:31]} 16. Nxe4 {[%clk 0:02:17.1]} 16... Qg6 {[%clk 0:01:17.4]}
17. Qd4 {[%clk 0:02:08]} 17... Re8 {[%clk 0:00:58.6]} 18. Ng3 {[%clk 0:02:04.1]}
18... c5 {[%clk 0:00:43.1]} 19. Qxc5 {[%clk 0:01:45.7]} 19... Bg4 {[%clk
0:00:37.1]} 20. Bb5 {[%clk 0:01:06.1]} 20... Nd3+ {[%clk 0:00:23.7]} 21. Bxd3
{[%clk 0:01:05.2]} 21... Qxd3 {[%clk 0:00:24.6]} 22. Qc3 {[%clk 0:00:57.6]}
22... Qa6 {[%clk 0:00:17.2]} 23. f3 {[%clk 0:00:51.9]} 23... Rac8 {[%clk
0:00:14.3]} 24. Qd2 {[%clk 0:00:52]} 24... Bd7 {[%clk 0:00:10.5]} 25. Kf2 {[%clk
0:00:52.3]} 25... Qb6 {[%clk 0:00:03.8]} 26. Rac1 {[%clk 0:00:50.5]} 26... Rcd8
{[%clk 0:00:04.7]} 27. Ne2 {[%clk 0:00:42.7]} 27... Bc6 {[%clk 0:00:04.1]} 28.
Nc3 {[%clk 0:00:40.2]} 28... Rd7 {[%clk 0:00:02.3]} 29. Rhd1 {[%clk 0:00:38.9]}
29... Red8 {[%clk 0:00:02]} 30. Ne2 {[%clk 0:00:15.3]} 30... Bxd5 {[%clk
0:00:02]} 31. Nd4 {[%clk 0:00:15.4]} 1-0

[Event "*** Titled Tuesday Blitz"]
[Site "Chess.com"]
[Date "2021.03.09"]
[Round "11"]
[White "Jan1401"]
[Black "bylavochka"]
[Result "1-0"]
[WhiteElo "2421"]
[BlackElo "2233"]
[TimeControl "180+1"]
[EndTime "12:09:45 PST"]
[Termination "Jan1401 won by resignation"]

1. e4 {[%clk 0:03:00.9]} 1... c5 {[%clk 0:02:59.7]} 2. Nf3 {[%clk 0:03:00.8]}
2... d6 {[%clk 0:02:59.1]} 3. Bb5+ {[%clk 0:03:00.6]} 3... Bd7 {[%clk 0:02:59]}
4. Bxd7+ {[%clk 0:03:00.8]} 4... Qxd7 {[%clk 0:02:59.9]} 5. O-O {[%clk
0:03:00.8]} 5... Nc6 {[%clk 0:02:58.2]} 6. c3 {[%clk 0:03:00.9]} 6... Nf6 {[%clk
0:02:53.1]} 7. Re1 {[%clk 0:03:00.9]} 7... e6 {[%clk 0:02:52.5]} 8. d4 {[%clk
0:03:01]} 8... cxd4 {[%clk 0:02:52.8]} 9. cxd4 {[%clk 0:03:01.2]} 9... d5 {[%clk
0:02:53.7]} 10. e5 {[%clk 0:03:01.2]} 10... Ne4 {[%clk 0:02:54.3]} 11. a3 {[%clk
0:03:01.8]} 11... Be7 {[%clk 0:02:50.8]} 12. Nbd2 {[%clk 0:03:01.9]} 12... Nxd2
{[%clk 0:02:50.8]} 13. Bxd2 {[%clk 0:03:02.2]} 13... O-O {[%clk 0:02:48.6]} 14.
Rc1 {[%clk 0:03:02.7]} 14... Rac8 {[%clk 0:02:48.3]} 15. Rc3 {[%clk 0:03:02.8]}
15... a6 {[%clk 0:02:44.7]} 16. Rd3 {[%clk 0:02:59.9]} 16... b5 {[%clk
0:02:41.2]} 17. Ng5 {[%clk 0:02:59.2]} 17... h6 {[%clk 0:02:37.4]} 18. Nh3
{[%clk 0:02:56.1]} 18... b4 {[%clk 0:02:27.8]} 19. Qh5 {[%clk 0:02:38.8]} 19...
Kh7 {[%clk 0:02:03.2]} 20. axb4 {[%clk 0:02:25.3]} 20... Bxb4 {[%clk 0:01:55.1]}
21. Bxh6 {[%clk 0:02:00.2]} 21... gxh6 {[%clk 0:01:35.3]} 22. Ng5+ {[%clk
0:01:58.6]} 22... Kg7 {[%clk 0:00:27.1]} 23. Rg3 {[%clk 0:01:49.3]} 23... Rg8
{[%clk 0:00:26.8]} 24. Ne4+ {[%clk 0:01:27.2]} 24... Kf8 {[%clk 0:00:19.3]} 25.
Qxh6+ {[%clk 0:01:16.7]} 25... Ke7 {[%clk 0:00:16.6]} 26. Qf6+ {[%clk
0:01:08.6]} 26... Kf8 {[%clk 0:00:15.7]} 27. Qh6+ {[%clk 0:00:58.2]} 27... Ke7
{[%clk 0:00:15.3]} 28. Qh4+ {[%clk 0:00:48.6]} 28... Kf8 {[%clk 0:00:15.2]} 29.
Rxg8+ {[%clk 0:00:48.5]} 29... Kxg8 {[%clk 0:00:14.5]} 30. Nf6+ {[%clk
0:00:47.6]} 30... Kg7 {[%clk 0:00:07.3]} 31. Qg5+ {[%clk 0:00:41.6]} 31... Kf8
{[%clk 0:00:01.9]} 32. Nxd7+ {[%clk 0:00:41.3]} 32... Ke8 {[%clk 0:00:02.5]} 33.
Nf6+ {[%clk 0:00:40.4]} 33... Kd8 {[%clk 0:00:02.9]} 34. Nxd5+ {[%clk
0:00:39.5]} 34... Kd7 {[%clk 0:00:03]} 35. Nb6+ {[%clk 0:00:34.6]} 35... Kc7
{[%clk 0:00:03]} 36. Nxc8 {[%clk 0:00:32.5]} 36... Bxe1 {[%clk 0:00:03]} 37. Ne7
{[%clk 0:00:32.5]} 37... Nxd4 {[%clk 0:00:02.4]} 38. Qc1+ {[%clk 0:00:32]} 38...
Kd7 {[%clk 0:00:02.8]} 39. Qxe1 {[%clk 0:00:31.9]} 39... Kxe7 {[%clk 0:00:03.7]}
40. Qb4+ {[%clk 0:00:32.1]} 1-0

[Event "*** Titled Tuesday Blitz"]
[Site "Chess.com"]
[Date "2021.03.09"]
[Round "11"]
[White "PetrolulSah"]
[Black "jraosam"]
[Result "1-0"]
[WhiteElo "2208"]
[BlackElo "1931"]
[TimeControl "180+1"]
[EndTime "12:09:48 PST"]
[Termination "PetrolulSah won on time"]

1. d4 {[%clk 0:03:00.9]} 1... e5 {[%clk 0:02:54.2]} 2. dxe5 {[%clk 0:02:57.7]}
2... Nc6 {[%clk 0:02:50.2]} 3. Nf3 {[%clk 0:02:58]} 3... Qe7 {[%clk 0:02:46.3]}
4. Nc3 {[%clk 0:02:56.6]} 4... Nxe5 {[%clk 0:02:41.5]} 5. Nxe5 {[%clk
0:02:56.6]} 5... Qxe5 {[%clk 0:02:38.5]} 6. Qd5 {[%clk 0:02:57.5]} 6... Qxd5
{[%clk 0:02:30]} 7. Nxd5 {[%clk 0:02:58.4]} 7... Bd6 {[%clk 0:02:25.3]} 8. e4
{[%clk 0:02:58.5]} 8... c6 {[%clk 0:02:20.3]} 9. Ne3 {[%clk 0:02:52.9]} 9... Nf6
{[%clk 0:02:15]} 10. Nf5 {[%clk 0:02:44.9]} 10... Bc7 {[%clk 0:02:00.1]} 11.
Nxg7+ {[%clk 0:02:42.5]} 11... Kf8 {[%clk 0:01:54.5]} 12. Bh6 {[%clk 0:02:41.9]}
12... Ba5+ {[%clk 0:01:43.5]} 13. c3 {[%clk 0:02:36.5]} 13... Ng4 {[%clk
0:01:33.9]} 14. Nf5+ {[%clk 0:02:30.1]} 14... Nxh6 {[%clk 0:01:29.7]} 15. Nxh6
{[%clk 0:02:30]} 15... d5 {[%clk 0:01:25.8]} 16. exd5 {[%clk 0:02:27.4]} 16...
cxd5 {[%clk 0:01:25.8]} 17. O-O-O {[%clk 0:02:27.2]} 17... Bb6 {[%clk
0:01:17.5]} 18. Rxd5 {[%clk 0:01:56.7]} 18... Be6 {[%clk 0:01:11.8]} 19. Rh5
{[%clk 0:01:53.4]} 19... Bxa2 {[%clk 0:01:05.3]} 20. Bd3 {[%clk 0:01:40]} 20...
Be6 {[%clk 0:01:06.2]} 21. Nf5 {[%clk 0:01:32.4]} 21... Bxf2 {[%clk 0:00:54.6]}
22. Rf1 {[%clk 0:01:31.9]} 22... Bb6 {[%clk 0:00:49.8]} 23. Nd6 {[%clk
0:01:28.7]} 23... Ke7 {[%clk 0:00:43.1]} 24. Nxb7 {[%clk 0:01:19.8]} 24... Rag8
{[%clk 0:00:36.8]} 25. g3 {[%clk 0:01:16.9]} 25... h6 {[%clk 0:00:29.8]} 26. Nc5
{[%clk 0:01:11.4]} 26... Rg5 {[%clk 0:00:23.8]} 27. Rxg5 {[%clk 0:01:08.2]}
27... hxg5 {[%clk 0:00:23.5]} 28. Nxe6 {[%clk 0:01:04.7]} 28... fxe6 {[%clk
0:00:21.9]} 29. Re1 {[%clk 0:00:50.9]} 29... Rxh2 {[%clk 0:00:12]} 30. Bf5
{[%clk 0:00:46.7]} 30... Rh6 {[%clk 0:00:10.3]} 31. g4 {[%clk 0:00:40.4]} 31...
Rf6 {[%clk 0:00:05.4]} 32. Kc2 {[%clk 0:00:37.1]} 32... Bc7 {[%clk 0:00:05.7]}
33. b4 {[%clk 0:00:35.2]} 33... e5 {[%clk 0:00:06]} 34. Rd1 {[%clk 0:00:33.3]}
34... Rd6 {[%clk 0:00:05.2]} 35. Ra1 {[%clk 0:00:33]} 35... Bb6 {[%clk
0:00:03.8]} 36. Rh1 {[%clk 0:00:32.5]} 36... Rd8 {[%clk 0:00:03.3]} 37. Rh7+
{[%clk 0:00:32]} 37... Kd6 {[%clk 0:00:03.6]} 38. Rg7 {[%clk 0:00:31.8]} 38...
Be3 {[%clk 0:00:02.7]} 39. Kd3 {[%clk 0:00:31.4]} 1-0

[Event "*** Titled Tuesday Blitz"]
[Site "Chess.com"]
[Date "2021.03.09"]
[Round "11"]
[White "Fiona"]
[Black "canary2016"]
[Result "1-0"]
[WhiteElo "2205"]
[BlackElo "2053"]
[TimeControl "180+1"]
[EndTime "12:09:48 PST"]
[Termination "Fiona won by checkmate"]

1. e4 {[%clk 0:03:00.9]} 1... c5 {[%clk 0:02:59.8]} 2. Nc3 {[%clk 0:03:01.3]}
2... a6 {[%clk 0:02:59.5]} 3. f4 {[%clk 0:03:02]} 3... b5 {[%clk 0:02:59]} 4.
Nf3 {[%clk 0:03:02.6]} 4... Bb7 {[%clk 0:02:59.2]} 5. d3 {[%clk 0:03:03.2]} 5...
Nc6 {[%clk 0:02:58.3]} 6. g3 {[%clk 0:02:58.4]} 6... e6 {[%clk 0:02:58.5]} 7.
Bg2 {[%clk 0:02:48.7]} 7... g6 {[%clk 0:02:58.4]} 8. O-O {[%clk 0:02:47.5]} 8...
Bg7 {[%clk 0:02:58.4]} 9. Qe1 {[%clk 0:02:47]} 9... Nge7 {[%clk 0:02:58.5]} 10.
Nd1 {[%clk 0:02:43]} 10... O-O {[%clk 0:02:58.4]} 11. c3 {[%clk 0:02:43.5]}
11... Rc8 {[%clk 0:02:57.2]} 12. g4 {[%clk 0:02:38.9]} 12... d5 {[%clk
0:02:50.6]} 13. f5 {[%clk 0:02:27.2]} 13... exf5 {[%clk 0:02:36.1]} 14. Bg5
{[%clk 0:02:22.2]} 14... fxg4 {[%clk 0:02:13.4]} 15. Nd2 {[%clk 0:02:09]} 15...
dxe4 {[%clk 0:02:06.3]} 16. Nxe4 {[%clk 0:01:51.2]} 16... Qc7 {[%clk 0:01:52.3]}
17. Nf6+ {[%clk 0:01:38]} 17... Bxf6 {[%clk 0:01:51.7]} 18. Bxf6 {[%clk
0:01:38.1]} 18... Nf5 {[%clk 0:01:48.9]} 19. Rxf5 {[%clk 0:01:28.9]} 19... gxf5
{[%clk 0:01:46.6]} 20. Qh4 {[%clk 0:01:29]} 20... Qf4 {[%clk 0:00:49.7]} 21. Nf2
{[%clk 0:00:58.1]} 21... Rfe8 {[%clk 0:00:28.3]} 22. Bg5 {[%clk 0:00:55.1]}
22... Qe5 {[%clk 0:00:24.3]} 23. Rf1 {[%clk 0:00:49.2]} 23... Re6 {[%clk
0:00:23.2]} 24. Qh5 {[%clk 0:00:37.8]} 24... Qg7 {[%clk 0:00:21.2]} 25. Nh1
{[%clk 0:00:25]} 25... Rce8 {[%clk 0:00:18.4]} 26. Ng3 {[%clk 0:00:23.4]} 26...
Re1 {[%clk 0:00:14.7]} 27. Nxf5 {[%clk 0:00:21]} 27... Rxf1+ {[%clk 0:00:14.4]}
28. Bxf1 {[%clk 0:00:18.8]} 28... Qg6 {[%clk 0:00:14.1]} 29. Qxg4 {[%clk
0:00:17.8]} 29... Bc8 {[%clk 0:00:10]} 30. Nh6+ {[%clk 0:00:14.4]} 30... Kh8
{[%clk 0:00:07.9]} 31. Qf4 {[%clk 0:00:09.4]} 31... Rf8 {[%clk 0:00:05.7]} 32.
Kf2 {[%clk 0:00:09.6]} 32... Bd7 {[%clk 0:00:03.8]} 33. Bf6+ {[%clk 0:00:08.4]}
33... Qxf6 {[%clk 0:00:01.3]} 34. Qxf6# {[%clk 0:00:09.3]} 1-0

[Event "*** Titled Tuesday Blitz"]
[Site "Chess.com"]
[Date "2021.03.09"]
[Round "11"]
[White "kamilianin235"]
[Black "CM_rui"]
[Result "0-1"]
[WhiteElo "2265"]
[BlackElo "2383"]
[TimeControl "180+1"]
[EndTime "12:09:49 PST"]
[Termination "CM_rui won by resignation"]

1. e4 {[%clk 0:02:55.4]} 1... e5 {[%clk 0:03:00.1]} 2. Nf3 {[%clk 0:02:51]} 2...
Nc6 {[%clk 0:03:00.4]} 3. Bc4 {[%clk 0:02:47.3]} 3... Bc5 {[%clk 0:02:58.6]} 4.
c3 {[%clk 0:02:44.6]} 4... Nf6 {[%clk 0:02:58.6]} 5. d3 {[%clk 0:02:40.9]} 5...
O-O {[%clk 0:02:58]} 6. a4 {[%clk 0:02:39]} 6... d5 {[%clk 0:02:57.4]} 7. exd5
{[%clk 0:02:37.4]} 7... Nxd5 {[%clk 0:02:58.3]} 8. O-O {[%clk 0:02:35.3]} 8...
a6 {[%clk 0:02:55.4]} 9. Nbd2 {[%clk 0:02:30.9]} 9... Nf4 {[%clk 0:02:55.4]} 10.
Ne4 {[%clk 0:02:24.7]} 10... Bb6 {[%clk 0:02:54.3]} 11. Bxf4 {[%clk 0:02:23.4]}
11... exf4 {[%clk 0:02:55.2]} 12. d4 {[%clk 0:02:23]} 12... Bf5 {[%clk
0:02:50.5]} 13. Re1 {[%clk 0:02:21.3]} 13... h6 {[%clk 0:02:46.3]} 14. b4 {[%clk
0:02:03.9]} 14... Ne7 {[%clk 0:02:39.8]} 15. Qb3 {[%clk 0:01:53]} 15... Ng6
{[%clk 0:02:34.7]} 16. a5 {[%clk 0:01:45.3]} 16... Ba7 {[%clk 0:02:33.2]} 17.
Rad1 {[%clk 0:01:44.7]} 17... Qd7 {[%clk 0:02:09.5]} 18. Nc5 {[%clk 0:01:27.3]}
18... Bxc5 {[%clk 0:02:08.5]} 19. dxc5 {[%clk 0:01:28.2]} 19... Qc8 {[%clk
0:02:02.2]} 20. Nd4 {[%clk 0:01:25.2]} 20... Nh4 {[%clk 0:01:53.1]} 21. Re7
{[%clk 0:01:09.6]} 21... Bg6 {[%clk 0:01:47.3]} 22. Ne6 {[%clk 0:01:03.2]} 22...
Re8 {[%clk 0:01:19.2]} 23. Rxe8+ {[%clk 0:00:55.5]} 23... Qxe8 {[%clk
0:01:20.1]} 24. Nxc7 {[%clk 0:00:55.1]} 24... Qe4 {[%clk 0:01:06.4]} 25. Bd5
{[%clk 0:00:48]} 25... Qe2 {[%clk 0:01:03.6]} 26. Nxa8 {[%clk 0:00:36.3]} 26...
Bc2 {[%clk 0:01:00.8]} 27. Bxf7+ {[%clk 0:00:34.8]} 27... Kh7 {[%clk 0:00:57.6]}
28. Bg8+ {[%clk 0:00:21.5]} 28... Kh8 {[%clk 0:00:57.7]} 29. Rf1 {[%clk
0:00:17.7]} 29... Bxb3 {[%clk 0:00:55.5]} 30. Bxb3 {[%clk 0:00:18.6]} 30... f3
{[%clk 0:00:53.5]} 31. g3 {[%clk 0:00:14.4]} 31... Qe4 {[%clk 0:00:44.4]} 32.
Nb6 {[%clk 0:00:11]} 32... Qg4 {[%clk 0:00:43.7]} 33. Rd1 {[%clk 0:00:10.2]}
33... Qh3 {[%clk 0:00:35.5]} 34. Rd8+ {[%clk 0:00:09.9]} 34... Kh7 {[%clk
0:00:35.4]} 35. Bg8+ {[%clk 0:00:10.2]} 35... Kg6 {[%clk 0:00:33.3]} 36. Rd6+
{[%clk 0:00:10.4]} 36... Kg5 {[%clk 0:00:32.2]} 37. gxh4+ {[%clk 0:00:09.8]}
37... Kxh4 {[%clk 0:00:26.4]} 38. Rg6 {[%clk 0:00:09]} 38... Qf5 {[%clk
0:00:24.2]} 0-1

[Event "*** Titled Tuesday Blitz"]
[Site "Chess.com"]
[Date "2021.03.09"]
[Round "11"]
[White "Shuvalov"]
[Black "mapleaff"]
[Result "0-1"]
[WhiteElo "2499"]
[BlackElo "2418"]
[TimeControl "180+1"]
[EndTime "12:09:51 PST"]
[Termination "mapleaff won by resignation"]

1. b4 {[%clk 0:03:00.9]} 1... a5 {[%clk 0:02:57.4]} 2. b5 {[%clk 0:03:00.6]}
2... b6 {[%clk 0:02:56.3]} 3. Bb2 {[%clk 0:02:58.3]} 3... Bb7 {[%clk 0:02:56.5]}
4. e3 {[%clk 0:02:58]} 4... Nf6 {[%clk 0:02:55.7]} 5. f4 {[%clk 0:02:57.2]} 5...
e6 {[%clk 0:02:53.4]} 6. Nf3 {[%clk 0:02:56.6]} 6... Be7 {[%clk 0:02:53.9]} 7.
Bd3 {[%clk 0:02:47]} 7... O-O {[%clk 0:02:51.8]} 8. Nc3 {[%clk 0:02:46.6]} 8...
d5 {[%clk 0:02:49.8]} 9. Rg1 {[%clk 0:02:39.8]} 9... Nbd7 {[%clk 0:02:48.1]} 10.
g4 {[%clk 0:02:38.9]} 10... Nc5 {[%clk 0:02:47.5]} 11. g5 {[%clk 0:02:35.3]}
11... Nxd3+ {[%clk 0:02:47.8]} 12. cxd3 {[%clk 0:02:35]} 12... Ne8 {[%clk
0:02:45.3]} 13. Ne2 {[%clk 0:02:31.3]} 13... a4 {[%clk 0:02:39]} 14. Rc1 {[%clk
0:02:28.2]} 14... a3 {[%clk 0:02:38.3]} 15. Ba1 {[%clk 0:02:28]} 15... Ra5
{[%clk 0:02:27.7]} 16. Ned4 {[%clk 0:02:26.7]} 16... Nd6 {[%clk 0:02:11.6]} 17.
Ne5 {[%clk 0:02:23.4]} 17... Nxb5 {[%clk 0:01:18.4]} 18. Ndc6 {[%clk 0:02:14.7]}
18... Bxc6 {[%clk 0:01:10.5]} 19. Nxc6 {[%clk 0:02:14.7]} 19... Qd7 {[%clk
0:01:10.8]} 20. Nxa5 {[%clk 0:02:14.1]} 20... bxa5 {[%clk 0:01:11.7]} 21. Qc2
{[%clk 0:01:35.9]} 21... c5 {[%clk 0:01:02.3]} 22. Ke2 {[%clk 0:01:25.6]} 22...
d4 {[%clk 0:01:01.2]} 23. Rb1 {[%clk 0:01:21]} 23... Nc7 {[%clk 0:00:39.1]} 24.
exd4 {[%clk 0:00:55.1]} 24... Nd5 {[%clk 0:00:38.2]} 25. Rbf1 {[%clk 0:00:49.3]}
25... cxd4 {[%clk 0:00:23.7]} 26. Bxd4 {[%clk 0:00:48.1]} 26... Nb4 {[%clk
0:00:22.5]} 27. Qc3 {[%clk 0:00:43.9]} 27... Rc8 {[%clk 0:00:19.5]} 28. Bxg7
{[%clk 0:00:32.7]} 28... Rxc3 {[%clk 0:00:18.6]} 29. Bxc3 {[%clk 0:00:32.4]}
29... Qxd3+ {[%clk 0:00:18.3]} 30. Kd1 {[%clk 0:00:32.7]} 30... Nd5 {[%clk
0:00:10.6]} 31. Bxa5 {[%clk 0:00:31]} 31... Ne3+ {[%clk 0:00:10.4]} 32. Ke1
{[%clk 0:00:30.6]} 32... Nxf1 {[%clk 0:00:10.7]} 33. Rxf1 {[%clk 0:00:31.5]}
33... Qb1+ {[%clk 0:00:08.8]} 34. Ke2 {[%clk 0:00:31.3]} 34... Qxa2 {[%clk
0:00:08.2]} 35. Bc3 {[%clk 0:00:31.5]} 35... Qc4+ {[%clk 0:00:08.3]} 36. Kf2
{[%clk 0:00:29.4]} 36... Bc5+ {[%clk 0:00:08.3]} 37. Kg2 {[%clk 0:00:26.1]}
37... Qe2+ {[%clk 0:00:07.4]} 38. Kg3 {[%clk 0:00:26.5]} 38... Qxf1 {[%clk
0:00:07.2]} 0-1